Cogmind - Beta 16.1 @@@ ROGUE MODE // 2026.04.08 @ 20:04:42 Player: Ammie Result: Destroyed by 7U-6JX(R) with Subdweller Machine Gun Performance ------------- Evolutions (0) 0 Regions Visited (3) 600 Robots Destroyed (21) 105 Value Destroyed (505) 505 Prototype IDs (2) 40 Alien Tech Used (0) 0 Bonus (0) 0 TOTAL SCORE: 1250 Bonus ------- None Cogmind --------- Core Integrity 0/250 Matter 138/300 Energy 141/160 System Corruption 0% Temperature Cool (0) Movement Walking (190) Ox1 Location -10/Subcaves Parts ------- > --- POWER (1) -------- Light Nuclear Core > --- PROPULSION (2) --- Aluminum Leg > --- UTILITY (2) ------ Heat Sink Small Storage Unit > --- WEAPON (2) ------- Medium Laser Light Cannon > --- INVENTORY (8) ---- Ion Engine Light Ion Engine Light Ion Engine Light Ion Engine Weight Redist. System Medium Laser Small Laser Peak State ------------ > --- POWER ------------ Light Nuclear Core > --- PROPULSION ------- Subdweller Monowheel Subdweller Monowheel > --- UTILITY ---------- Small Storage Unit > --- WEAPON ----------- Medium Laser Light Cannon > --- INVENTORY -------- Ion Engine Light Ion Engine Light Ion Engine Light Ion Engine Weight Redist. System Medium Laser Small Laser Light Cannon [Rating: 10] Favorites ----------- Power Light Nuclear Core Engine Ion Engine Power Core Light Nuclear Core Propulsion Aluminum Leg Leg Aluminum Leg Wheel Subdweller Monowheel Utility Small Storage Unit Device Heat Sink Storage Small Storage Unit Weapon Medium Laser Energy Gun Medium Laser Ballistic Gun Assault Rifle Ballistic Cannon Light Cannon Build | -11 -10 -10 -10 ------- Run | Yrd Mat Min Sub Slots Evolved . | . . . . Power . | . . . . Propulsion . | . . . . Utility . | . . . . Weapon . | . . . . Parts Attached 17 | 6 11 . . Power 3 | 1 2 . . Engine 2 | 1 1 . . Core 1 | . 1 . . Reactor . | . . . . Propulsion 6 | 2 4 . . Treads . | . . . . Leg 4 | 2 2 . . Wheel 2 | . 2 . . Hover . | . . . . Flight . | . . . . Utility 2 | 1 1 . . Device 1 | . 1 . . Storage 1 | 1 . . . Processor . | . . . . Hackware . | . . . . Protection . | . . . . Artifact . | . . . . Weapon 6 | 2 4 . . Energy Gun 3 | 2 1 . . Energy Cannon . | . . . . Ballistic Gun 1 | . 1 . . Ballistic Cannon 2 | . 2 . . Launcher . | . . . . Special Weapon . | . . . . Impact Weapon . | . . . . Slashing Weapon . | . . . . Piercing Weapon . | . . . . Special Melee Weapon . | . . . . Unidentified Prototypes . | . . . . Parts Lost 4 | . 2 . 2 Power . | . . . . Propulsion 3 | . 2 . 1 Utility . | . . . . Weapon 1 | . . . 1 Highest Loss Streak 2 | . 2 . 1 To Critical Strikes . | . . . . Average Backups 6 | 1 5 8 8 Power 3 | . 2 4 4 Propulsion . | . . . . Utility . | . . 1 1 Weapon 2 | . 2 3 3 Tool/Special . | . . . . Unused Backups 4 | . . . 4 Power 2 | . . . 2 Propulsion . | . . . . Utility 1 | . . . 1 Weapon 1 | . . . 1 Tool/Special . | . . . . Average Slot Usage (%) 91 | . 88 100 97 Engine 5 | . 8 . . Core 8 | . 5 14 14 Leg 26 | . 26 28 25 Device 7 | . 4 14 14 Storage 14 | . 14 14 14 Energy Gun 15 | . 16 14 14 Ballistic Cannon 11 | . 10 14 13 Peak Build Rating 10 | 6 10 9 9 Average Rating 7 | 4 7 9 8 On Entrance 6 | . 6 9 9 Avg Prop Armor Cover (%) . | . . . . Naked Turns . | . . . . Heaviest Build 16 | 11 16 16 16 Greatest Support 40 | 20 40 20 20 Greatest Overweight (x) 4 | . 4 . 1 Average Overweight (x) . | . . . . Largest Inventory Capacity 8 | 8 8 8 8 Average Capacity 7 | 7 8 8 8 Most Carried 8 | 2 8 8 8 Average Carried 6 | 1 5 8 7 Final Capacity 8 | 8 8 8 8 Final Carried 8 | 2 8 8 7 Class Distribution -------------------- 53% | Mutant 46% | Scavenger-Mutant Dominant Class ---------------- Mutant | -10/Materials Scavenger-Mutant | -10/Mines Scavenger-Mutant | -10/Subcaves Resources | -11 -10 -10 -10 ----------- Run | Yrd Mat Min Sub Matter Collected 564 | 226 257 . 81 Remotely . | . . . . Salvage Created 568 | . 460 . 108 Parts 51 | . 48 . 3 Haulers Intercepted 1 | . 1 . . Recyclers Shooed . | . . . . Parts Field Recycled . | . . . . Retrieved Matter . | . . . . Parts Self-Destructed 3 | . . . 3 Prevented . | . . . . Parts Restored . | . . . . Kills | -11 -10 -10 -10 ------- Run | Yrd Mat Min Sub Combat Hostiles Destroyed 15 | . 12 . 3 Guns 7 | . 7 . . Cannons 8 | . 5 . 3 Classes Destroyed 7 | . 7 . . Worker 1 | . 1 . . Builder 1 | . 1 . . Hauler 1 | . 1 . . Watcher 3 | . 3 . . Swarmer 5 | . 5 . . Grunt 4 | . 4 . . Subdweller 6 | . 3 . 3 Best Kill Streak 4 | . 4 . 2 Combat Bots Only 3 | . 3 . 2 Max Kills in Single Turn 2 | . 2 . 1 Gunslinging . | . . . . Exploded . | . . . . Melee . | . . . . Uniques/NPCs Destroyed . | . . . . Combat | -11 -10 -10 -10 -------- Run | Yrd Mat Min Sub Hostile Shots Fired 85 | . 55 . 30 Missed 28 | . 16 . 12 Hits 57 | . 39 . 18 Projectile 57 | . 39 . 18 AOE 2 | . 2 . . Critical Strikes 1 | . 1 . . Damage Taken 953 | . 567 . 386 Core 263 | . 164 . 99 Absorbed by Shields . | . . . . Core Remaining (%) 100 | 100 . . . Volleys Fired 95 | . 44 . 51 Largest 2 | . 2 . 2 Hottest 90 | . 90 . 80 Shots Fired 161 | . 88 . 73 Gun 77 | . 53 . 24 Cannon 84 | . 35 . 49 Launcher . | . . . . Special . | . . . . Kinetic 84 | . 35 . 49 Thermal 77 | . 53 . 24 Explosive . | . . . . Electromagnetic . | . . . . Robot Hit Streak 12 | . 7 . 12 Robot Miss Streak 7 | . 7 . 3 Penetration Max . | . . . . Secondary Targets . | . . . . Shots Hit Robots 77 | . 43 . 34 Core Hits 31 | . 24 . 7 Critical Kills . | . . . . Critical Parts Destroyed . | . . . . Critical Strikes 5 | . 2 . 3 Burn 4 | . 2 . 2 Blast 1 | . . . 1 Melee Attacks . | . . . . Impact . | . . . . Slashing . | . . . . Piercing . | . . . . Sneak Attacks . | . . . . Combat Hostiles . | . . . . Follow-up Attacks . | . . . . Damage Inflicted 1110 | . 617 . 493 Guns 529 | . 328 . 201 Cannons 581 | . 289 . 292 Explosions . | . . . . Melee . | . . . . Ramming . | . . . . Kinetic 581 | . 289 . 292 Thermal 529 | . 328 . 201 Explosive . | . . . . Electromagnetic . | . . . . Impact . | . . . . Slashing . | . . . . Piercing . | . . . . Highest Corruption . | . . . . Average Corruption . | . . . . Corruption Purged . | . . . . Corruption Blocked . | . . . . Overload Shots . | . . . . Overflow Damage . | . . . . Projectiles . | . . . . Explosions . | . . . . Melee . | . . . . Knockbacks 6 | . 3 . 3 Impact . | . . . . Kinetic 6 | . 3 . 3 Secondary . | . . . . Self-Inflicted Damage . | . . . . Shots . | . . . . Rammed . | . . . . Targets Rammed . | . . . . Kicked . | . . . . Crushed . | . . . . Highest Temperature 168 | . 168 . . Average Temperature 61 | . 61 . . Received Heat Transfer 204 | . 135 . 69 Siege Activations . | . . . . Martial Activations . | . . . . Shielding Activations . | . . . . Robots Disrupted . | . . . . Combat Hostiles . | . . . . Robots Corrupted . | . . . . Combat Hostiles . | . . . . Parts Fried . | . . . . Impact Corruptions . | . . . . Robots Melted . | . . . . Combat Hostiles . | . . . . Parts Melted 2 | . 1 . 1 Heat Transferred 1839 | . 1099 . 740 Parts Sabotaged . | . . . . Parts Stolen . | . . . . Parts Stripped . | . . . . Power Chain Reactions . | . . . . Alert | -11 -10 -10 -10 ------- Run | Yrd Mat Min Sub Maximum Alert Level . | . . . . Low Security (%) 100 | 100 100 100 . Level 1 . | . . . . Level 2 . | . . . . Level 3 . | . . . . Level 4 . | . . . . Level 5 . | . . . . High Security . | . . . . Max Security . | . . . . Peak Influence 153 | . 153 27 . Initial 27 | . . 27 . Average 41 | . 47 12 . Influence Increases 350 | . 350 . . Destroy 0b10 Robot/C 180 | . 180 . . Destroy 0b10 Robot/NC 30 | . 30 . . Destroy Leader 38 | . 38 . . Successful Hack 12 | . 12 . . Disable Machine 15 | . 15 . . Lose Combat Pursuer 75 | . 75 . . Influence Decreases 350 | . 278 72 . Entered New Map 45 | . . 45 . Time Decay 305 | . 278 27 . Squads Dispatched 1 | . 1 . . Investigation . | . . . . Extermination . | . . . . Reinforcement 1 | . 1 . . Assault . | . . . . Garrison . | . . . . Intercept . | . . . . Searches Triggered . | . . . . Construction Impeded . | . . . . Haulers Reinforced . | . . . . Active Scanning Responses . | . . . . Cargo Convoy Interrupts . | . . . . Stealth | -11 -10 -10 -10 --------- Run | Yrd Mat Min Sub Distress Signals 2 | . 2 . . Communications Jammed . | . . . . Distress Signals . | . . . . Times Spotted 26 | . 22 . 4 Peak Tracking Total 5 | . 5 . 2 Tactical Retreats 4 | . 4 . . Traps | -11 -10 -10 -10 ------- Run | Yrd Mat Min Sub Traps Triggered 1 | . 1 . . Indirectly . | . . . . Trap Hack Attempts . | . . . . Triggered . | . . . . Disarmed . | . . . . Reprogrammed . | . . . . Reused . | . . . . Traps Extracted . | . . . . Installed . | . . . . Triggered . | . . . . Machines | -11 -10 -10 -10 ---------- Run | Yrd Mat Min Sub Machines Disabled 3 | . 3 . . Max in Single Turn 2 | . 2 . . Machines Repaired . | . . . . Machines Dismantled . | . . . . Machines Sabotaged . | . . . . Overloaded Fab Kills . | . . . . Hacking | -11 -10 -10 -10 --------- Run | Yrd Mat Min Sub Machines Accessed 4 | . 4 . . Terminals 4 | . 4 . . Fabricators . | . . . . Repair Stations . | . . . . Recycling Units . | . . . . Scanalyzers . | . . . . Garrison Access . | . . . . Total Hacks 8 | . 8 . . Successful 5 | . 5 . . Failed 3 | . 3 . . Catastrophic . | . . . . Database Lockouts . | . . . . Manual . | . . . . Terminals 8 | . 8 . . Fabricators . | . . . . Repair Stations . | . . . . Recycling Units . | . . . . Scanalyzers . | . . . . Garrison Access . | . . . . Terminal Hacks 5 | . 5 . . Prototype ID Bank 1 | . 1 . . Alert Level 1 | . 1 . . Registered Components 1 | . 1 . . Zone Layout 2 | . 2 . . Fabricator Hacks . | . . . . Repair Station Hacks . | . . . . Recycling Unit Hacks . | . . . . Scanalyzer . | . . . . Garrison Access Hacks . | . . . . Unauthorized Hacks . | . . . . Terminals . | . . . . Fabricators . | . . . . Repair Stations . | . . . . Recycling Units . | . . . . Scanalyzers . | . . . . Garrison Access . | . . . . Data Cores Recovered . | . . . . Used . | . . . . Hacking Detections 2 | . 2 . . Full Trace Events . | . . . . Feedback Events . | . . . . Feedback Blocked . | . . . . Robot Schematics Acquired . | . . . . Robots Built . | . . . . Authchips . | . . . . Time . | . . . . Total Robot Build Rating . | . . . . Part Schematics Acquired . | . . . . Parts Built . | . . . . Authchips . | . . . . Time . | . . . . Total Part Build Rating . | . . . . Part Studies Acquired . | . . . . Parts Repaired . | . . . . Time . | . . . . Parts Recycled . | . . . . Recycled Matter . | . . . . Retrieved Matter . | . . . . Retrieved Components . | . . . . Parts Scanalyzed . | . . . . Part Schematics Acquired . | . . . . Parts Damaged . | . . . . Bothacking | -11 -10 -10 -10 ------------ Run | Yrd Mat Min Sub Used RIF Installer . | . . . . Robots Hacked . | . . . . Non-combat . | . . . . Combat . | . . . . Robot Hacks Applied . | . . . . Relay Couplers Released . | . . . . Fabnet Peak Effective % . | . . . . Robots Rewired . | . . . . Allies Hacked . | . . . . Hacks Repelled . | . . . . Allies | -11 -10 -10 -10 -------- Run | Yrd Mat Min Sub Total Allies . | . . . . Largest Group . | . . . . Highest-Rated Group . | . . . . Highest-Rated Ally . | . . . . Total Orders . | . . . . Ally Attacks . | . . . . Total Damage . | . . . . Kills . | . . . . Allies Corrupted . | . . . . Allies Melted . | . . . . Intel | -11 -10 -10 -10 ------- Run | Yrd Mat Min Sub Active Infowar (turns) . | . . . . Robot Analysis Total . | . . . . Derelict Logs Recovered 1 | . . 1 . Drone Launches . | . . . . Drone Recoveries . | . . . . Exploration | -11 -10 -10 -10 ------------- Run | Yrd Mat Min Sub Turns Passed 1504 | 79 907 79 439 Spaces Moved 932 | 60 601 39 232 Core 11 | 6 5 . . Treads . | . . . . Legs 913 | 54 588 39 232 Wheels 8 | . 8 . . Hover . | . . . . Flight . | . . . . Fastest Speed 50 | 50 110 120 120 Average Speed 121 | 113 121 120 126 Slowest Speed 250 | 120 250 120 190 Overloaded Moves . | . . . . Propulsion Burnouts . | . . . . Robots Hopped . | . . . . Potential Cave-ins . | . . . . Cave-ins Triggered . | . . . . Exploration Rate (%) 29 | 3 85 12 16 Regions Visited 3 Branch Regions 2 Pre-discovered Areas . | . . . . Known Exits Taken . | . . . . Unknown Exits Taken 3 | 1 1 1 . Scrap Searched . | . . . . Spaces Dug . | . . . . Terrain Destroyed . | . . . . Melee . | . . . . Projectile . | . . . . AOE . | . . . . Terrain Rammed . | . . . . Walls Destroyed . | . . . . Machines Disabled . | . . . . Actions | -11 -10 -10 -10 --------- Run | Yrd Mat Min Sub Total 1130 | 68 684 71 307 Wait 79 | 1 22 33 23 Move 929 | 59 600 38 232 Hop . | . . . . Pick Up 6 | 2 4 . . Fast Attach 12 | 6 6 . . Attach 1 | . . . 1 Detach . | . . . . Swap 8 | . 8 . . Drop . | . . . . Fire 95 | . 44 . 51 Melee . | . . . . Ram . | . . . . Kick . | . . . . Crush . | . . . . Escape Stasis . | . . . . Rewire . | . . . . Trap . | . . . . Miscellaneous . | . . . . Route ------- -11/Scrapyard -10/Materials (discovered 6 exits: *Mat x3 / [*Min x2] / [*Sub]) -10/Mines (discovered 2 exits: Mat / [*Sub]) -10/Subcaves (discovered 1 exit: [*Mat]) History --------- Turn | Location | Event 7 | -11/Scrapyard | Discovered new exit (range 16) 80 | -11/Scrapyard | Entered Materials 262 | -10/Materials | Discovered new exit (range 16) 329 | -10/Materials | Discovered new exit (range 14) 329 | -10/Materials | Discovered new exit (range 16) 333 | -10/Materials | Build established: Mutant 450 | -10/Materials | Discovered new exit (range 16) 580 | -10/Materials | Derelicts attacked the area 581 | -10/Materials | Discovered new exit (range 12) 607 | -10/Materials | Core integrity fell below 50% 817 | -10/Materials | Discovered new exit (range 12) 987 | -10/Materials | Entered Mines 996 | -10/Mines | Excavation squad dispatched 996 | -10/Mines | A large section of the Mines collapsed 1005 | -10/Mines | Identified exit to Materials 1040 | -10/Mines | Build established: Scavenger-Mutant 1051 | -10/Mines | Discovered new exit (range 5) 1066 | -10/Mines | Entered Subcaves 1067 | -10/Subcaves | Approached by a straggling Scientist 1112 | -10/Subcaves | Discovered new exit (range 8) 1408 | -10/Subcaves | Core integrity fell below 20% 1505 | -10/Subcaves | Destroyed by 7U-6JX(R) with Subdweller Machine Gun Last Messages --------------- EG-MRM(c): "I think it's somewhere north of here" 01410_ IB-EUR(R) destroyed. 01419_ Subatomizers dissect the Sub. Power Source. 01420_ Aluminum Leg destroyed. 01426_ F5-RUW(R) destroyed. 01441_ TS-37C(R) knocked back. 01450_ TS-37C(R) suffers critical hit (Burn). 01450_ TS-37C(R) Sub. Monowheel blasted off. 01450_ Disposable Heat Sink melted. 01450_ TS-37C(R) destroyed. 01461_ Acquired 4 matter. 01465_ Acquired 2 matter. 01467_ Subatomizers dissect the Sub. Power Source. 01470_ Acquired 34 matter. 01472_ Acquired 41 matter. 01480_ Subatomizers dissect the Disposable Heat Sink. 01491_ 7U-6JX(R) suffers critical hit (Burn). 01494_ 7U-6JX(R) knocked back. 01499_ Lgt. Cannon destroyed. 01505_ Subatomizers dissect the Disposable Heat Sink. Map ----- +----------------------------------------------------+ | ?????????????????????????????????????????????????? | | ?????????????????????????????????????????????????? | | ?????????????????????????????????????????????????? | | ?????????????????????????????????????????????????? | | ?????????????????????????????????????????????????? | | ?????????????????????????????????????????????????? | | ?????????????????????????????????????????????????? | | ?????????????????????????????????????????????????? | | ?????????????????????????????????????????????????? | | ?????????????????????????????????????????????????? | | ?????????????????????????????????????????????????? | | ?????????????????????????????????????????????????? | | ?????????????????????????????????????????????????? | | ?????????????????????????????????????????????????? | | ?????????????????????????????????????????????????? | | ?????????????????????????????????????????????????? | | ?????????????????????????????????????????????????? | | ?????????????????????????????????????????????????? | | ???????????????????????####?#######??????????????? | | ??????????????????????## %## " ??????????????? | | ????????????????# = ### """""???????????????? | | ????????????????#!% % ""#?????????????????? | | ???????????????# ##R ###?????????????????? | | ???????????? ### ??## [##???????????????????? | | ??????????? ???????????# %#????????????????????? | | ????????????????????????#@ !##???????????????????? | | ????????????????????????# * ###?????????????????? | | ????????????????????????# #?????????????????? | | ????????????????????????## ####??????????????? | | ?????????????????????????# % ""##?????????????? | | ???????????????????####### "" #?????????????? | | ??????????????????## ##%=[ " #?????????????? | | ??????????????????# ## #?????????????? | | ?????????????????????# ###?????????????? | | ?????????????????????# ##???????????????? | | ?????????????????????## ##????????????????? | | ?????????????????????##" ##?????????????????? | | ?????????????????????#" " ##?????????????????? | | ????????????????###?###### #?????????????????? | | ??????????????? "#"##"# #?????????????????? | | ??????????????? """" #?????????????????? | | ??????????????# """ ##?????????????????? | | ???????????????? ## "" " ##??????????????????? | | ?????????????????????###" ""#???????????????????? | | ???????????????????#?##"" ""#???????????????????? | | ??????????????????"#"#""" ""######??????????????? | | ?????????????????"""""""" """## ###????????????? | | ??????????????????""" "" #????????????? | | ??????????????????"## "" #????????????? | | ????????????????????#### ## # #????????????? | +----------------------------------------------------+ Best States ------------- Heat Dissipation 35 Energy Generation 14 Energy Capacity 250 Matter Stores 300 Matter Capacity 300 Sight Range 16 Terrain Scan Density 10 Evasion (%) 55 Item Schematics ----------------- None Robot Schematics ------------------ None Fabricated ------------ Nothing Repaired ---------- Nothing Studied --------- None Alien Tech Used ----------------- None Achievements -------------- None Challenges ------------ None Game ------ Seed PlasmaDefenseHoverbase Manual? 0 Play Time 00:11:46 Cumulative 44.2 hours Start 2026.04.08 @ 19:55:15 End 2026.04.08 @ 20:04:42 Sessions 1 Manual Loads 0 Difficulty Rogue Special Mode None Game No. 76 Rogue 76 Adventurer 0 Explorer 0 Win Type - Total 0 Types 0/0/0/0/0/0/0/0/0/0 Lore% 16 Gallery% 24 Achievement% 20 Wizard Run 0 Options --------- Layout 0 ASCII 0 Keyboard 0 Movement Mouse Keybinds 0 Fullscreen 1 Font 24/Smallcaps Map View 38x25 Zoom Use 100% Tactical HUD 1 Map Filters NONE Filters NONE Steam 1 RUN: fb6e1516-998f-4a99-b2d8-af725ca7ec7c